bitfinex/quotes_BTCUSD_20241009
["timestamp","ask_amount","ask_price","bid_price","bid_amount"]
[1728439924331,0.01251378,62394.0,62393.0,0.5416509]
[1728439924852,0.01251378,62394.0,62393.0,0.6332509]
[1728439925081,0.00651378,62394.0,62393.0,0.66103006]
[1728439925328,0.00651378,62394.0,62393.0,0.66503006]
[1728439925571,0.00151378,62394.0,62393.0,0.5440666]
[1728439926104,0.00151378,62394.0,62393.0,0.5450666]
[1728439926524,0.00151378,62394.0,62393.0,0.5440666]
[1728439927003,0.00151378,62394.0,62393.0,0.5480666]
[1728439927522,0.00151378,62394.0,62393.0,0.64399888]
[1728439929886,0.00151378,62394.0,62393.0,0.66803006]
[1728439930356,0.00151378,62394.0,62393.0,0.5480666]
[1728439930581,0.00151378,62394.0,62393.0,0.66792706]
[1728439932127,0.00151378,62394.0,62393.0,0.74472706]
[1728439933997,7.8e-07,62394.0,62393.0,0.74472706]
[1728439934262,0.24125064,62406.0,62393.0,0.74472706]
[1728439934263,0.24125064,62406.0,62405.0,0.464643]
[1728439934478,0.24125064,62406.0,62405.0,0.78850095]
[1728439934754,0.24125064,62406.0,62405.0,0.81245562]
[1728439935066,0.001642,62409.0,62408.0,0.265235]
[1728439935217,0.001642,62409.0,62408.0,0.54118362]
[1728439936654,0.006642,62409.0,62408.0,0.54118362]
[1728439937310,0.012642,62409.0,62408.0,0.54218362]
[1728439938918,0.01971038,62409.0,62408.0,0.54218362]
[1728439940570,0.01971038,62409.0,62408.0,0.42164844]
[1728439941019,0.012642,62409.0,62408.0,0.42164844]
[1728439944064,0.012642,62409.0,62408.0,0.261235]
[1728439945407,0.012642,62409.0,62408.0,0.266235]
[1728439945637,0.012642,62409.0,62408.0,0.42164844]
[1728439950701,0.107742,62409.0,62408.0,0.261235]
[1728439957914,0.107742,62409.0,62408.0,0.161235]
[1728439959052,0.102742,62409.0,62408.0,0.161235]
[1728439959274,0.107742,62409.0,62408.0,0.161235]
[1728439959518,0.101742,62409.0,62408.0,0.160235]
[1728439959760,0.102742,62409.0,62408.0,0.161235]
[1728439961165,0.346775,62409.0,62408.0,0.002]
[1728439961425,0.51300373,62409.0,62408.0,0.002]
[1728439961645,0.51295224,62409.0,62408.0,0.002]
[1728439961897,0.50795224,62409.0,62408.0,0.001]
[1728439962354,0.50795224,62409.0,62408.0,0.003]
[1728439962586,0.50195224,62409.0,62408.0,0.002]
[1728439962803,0.160241,62406.0,62401.0,0.160251]
[1728439963033,0.1746,62403.0,62400.0,0.320511]
[1728439963297,0.0929,62402.0,62401.0,0.160253]
[1728439963520,0.1033535,62402.0,62401.0,0.160253]
[1728439963767,0.10366275,62402.0,62401.0,0.160253]
[1728439965119,0.1033535,62402.0,62401.0,0.162253]
[1728439965340,0.0104535,62402.0,62401.0,0.162253]
[1728439965832,0.0104535,62402.0,62401.0,0.160253]
[1728439966047,0.0124535,62402.0,62401.0,0.163253]
[1728439972854,0.0114535,62402.0,62401.0,0.162253]
[1728439973071,0.0124535,62402.0,62401.0,0.163253]
[1728439973343,0.0124535,62402.0,62401.0,0.164074]
[1728439973781,0.0114535,62402.0,62401.0,0.162074]
[1728439973992,0.0124535,62402.0,62401.0,0.168074]
[1728439976384,0.0114535,62402.0,62401.0,0.167074]
[1728439976813,0.0124535,62402.0,62401.0,0.168074]
[1728439977046,0.0114535,62402.0,62401.0,0.167074]
[1728439977461,0.0104535,62402.0,62401.0,0.161074]
[1728439977637,0.0946,62406.0,62401.0,0.000821]
[1728439977835,0.0946,62406.0,62405.0,0.160243]
[1728439978526,0.0799,62404.0,62401.0,0.001821]
[1728439978737,0.096,62403.0,62402.0,0.160251]
[1728439980128,0.10923353,62403.0,62402.0,0.160251]
[1728439981215,0.11023353,62403.0,62402.0,0.160251]
[1728439981448,0.10723353,62403.0,62402.0,0.160251]
[1728439981899,0.10923353,62403.0,62402.0,0.160251]
[1728439985675,0.10923353,62403.0,62402.0,0.161072]
[1728439988847,0.01323353,62403.0,62402.0,0.161072]
[1728440000179,0.01607511,62403.0,62402.0,0.161072]
[1728440008996,0.003,62403.0,62402.0,0.161072]
[1728440009639,0.002,62403.0,62402.0,0.161072]
[1728440009855,0.003,62403.0,62402.0,0.161072]
[1728440010296,0.001,62403.0,62402.0,0.161072]
[1728440010784,0.002,62403.0,62402.0,0.162072]
[1728440011011,0.001,62403.0,62402.0,0.32148544]
[1728440011231,0.001,62403.0,62402.0,0.32248544]
[1728440011647,0.002,62403.0,62402.0,0.32748544]
[1728440012100,0.001,62403.0,62402.0,0.32248544]
[1728440012322,0.002,62403.0,62402.0,0.32948544]
[1728440013910,0.002,62403.0,62402.0,0.174072]
[1728440016326,0.002,62403.0,62402.0,0.169072]
[1728440016558,0.0783,62403.0,62402.0,0.169072]
[1728440016794,0.09138001,62403.0,62402.0,0.169072]
[1728440024966,0.18638001,62403.0,62402.0,0.008821]
[1728440025224,0.34862801,62403.0,62402.0,0.008821]
[1728440025651,0.39670279,62403.0,62402.0,0.008821]
[1728440025856,0.42073508,62403.0,62402.0,0.001821]
[1728440026140,0.34762801,62403.0,62402.0,0.001821]
[1728440026353,0.34762801,62403.0,62402.0,0.003821]
[1728440026759,0.34662801,62403.0,62402.0,0.002821]
[1728440026969,0.34662801,62403.0,62402.0,0.003821]
[1728440027415,0.39469305,62403.0,62402.0,0.003821]
[1728440027628,0.39469305,62403.0,62402.0,0.001821]
[1728440028055,0.39469305,62403.0,62402.0,0.002821]
[1728440028056,0.34462801,62403.0,62402.0,0.002821]
[1728440028263,0.41873508,62403.0,62402.0,0.001821]
[1728440028476,0.41873508,62403.0,62402.0,0.000821]
[1728440028905,0.34662801,62403.0,62402.0,0.000821]
[1728440029121,0.34462801,62403.0,62402.0,0.000821]
[1728440030581,0.35362801,62403.0,62402.0,0.000821]
[1728440030792,0.39465849,62403.0,62402.0,0.000821]
[1728440031001,0.35262801,62403.0,62402.0,0.001821]
[1728440031208,0.35762801,62403.0,62402.0,0.001821]
[1728440031414,0.40565384,62403.0,62402.0,0.001821]
[1728440034402,0.35762801,62403.0,62402.0,0.001821]
[1728440034611,0.47818128,62403.0,62402.0,0.001821]
[1728440035452,0.19738001,62403.0,62402.0,0.001821]
[1728440035662,0.02608001,62403.0,62402.0,0.162072]
[1728440035886,0.013,62403.0,62402.0,0.162072]
[1728440036947,0.006,62403.0,62402.0,0.162072]
[1728440037149,0.007,62403.0,62402.0,0.163072]
[1728440037405,0.007,62403.0,62402.0,0.162072]
[1728440037621,0.001,62403.0,62402.0,0.162072]
[1728440037825,0.001,62403.0,62402.0,0.163072]
[1728440038441,0.001,62403.0,62402.0,0.162072]
[1728440038853,0.002,62403.0,62402.0,0.167072]
[1728440040142,0.01507048,62403.0,62402.0,0.167072]
[1728440040325,0.002,62403.0,62402.0,0.167072]
[1728440040539,0.01507048,62403.0,62402.0,0.167072]
[1728440040770,0.002,62403.0,62402.0,0.167072]
[1728440041001,0.01507048,62403.0,62402.0,0.167072]
[1728440041253,0.002,62403.0,62402.0,0.167072]
[1728440041758,0.01507048,62403.0,62402.0,0.167072]
[1728440041982,0.002,62403.0,62402.0,0.167072]
[1728440042689,0.01507048,62403.0,62402.0,0.167072]
[1728440042914,0.002,62403.0,62402.0,0.006821]
[1728440043145,0.01507637,62403.0,62402.0,0.006821]
[1728440043376,0.01507637,62403.0,62402.0,0.167072]
[1728440044329,0.01507637,62403.0,62402.0,0.006821]
[1728440045507,0.01507637,62403.0,62402.0,0.167072]
[1728440047184,0.002,62403.0,62402.0,0.167072]
[1728440053268,0.01507499,62403.0,62402.0,0.167072]
[1728440056246,0.01506291,62403.0,62402.0,0.167072]
[1728440060112,0.002,62403.0,62402.0,0.167072]
[1728440060860,0.01505114,62403.0,62402.0,0.167072]
[1728440061104,0.01505702,62403.0,62402.0,0.167072]
[1728440061579,0.002,62403.0,62402.0,0.167072]
[1728440061787,0.01505114,62403.0,62402.0,0.167072]
[1728440062001,0.002,62403.0,62402.0,0.167072]
[1728440062231,0.01505278,62403.0,62402.0,0.167072]
[1728440062675,0.01505278,62403.0,62402.0,0.006821]
[1728440062676,0.17530078,62403.0,62402.0,0.006821]
[1728440062923,0.1756106,62403.0,62402.0,0.006821]
[1728440063139,0.17530078,62403.0,62402.0,0.006821]
[1728440064360,0.35020078,62403.0,62402.0,0.006821]
[1728440064598,0.57964305,62403.0,62402.0,0.006821]
[1728440064838,0.50761422,62403.0,62402.0,0.006821]
[1728440065770,0.57963885,62403.0,62402.0,0.006821]
[1728440065979,0.50761422,62403.0,62402.0,0.006821]
[1728440066266,0.50561422,62403.0,62402.0,0.006821]
[1728440067077,0.50761422,62403.0,62402.0,0.006821]
[1728440067609,0.65159601,62403.0,62402.0,0.006821]
[1728440067810,0.65059601,62403.0,62402.0,0.001821]
[1728440068099,0.64959601,62403.0,62402.0,0.000821]
[1728440068368,0.51821867,62403.0,62402.0,0.000821]
[1728440068629,0.66215863,62403.0,62402.0,0.000821]
[1728440068879,0.64297434,62403.0,62402.0,0.000821]
[1728440069129,0.64297434,62403.0,62402.0,0.001821]
[1728440069130,0.79691677,62403.0,62402.0,0.001821]
[1728440069410,0.79262214,62403.0,62402.0,0.001821]
[1728440069649,0.64867971,62403.0,62402.0,0.001821]
[1728440070130,0.65967971,62403.0,62402.0,0.001821]
[1728440070364,0.89858916,62403.0,62402.0,0.000821]
[1728440070628,0.61092404,62403.0,62402.0,0.000821]
[1728440070859,0.62292404,62403.0,62402.0,0.000821]
[1728440071345,0.63592404,62403.0,62402.0,0.000821]
[1728440071593,0.61092404,62403.0,62402.0,0.000821]
[1728440071815,0.63792404,62403.0,62402.0,0.000821]
[1728440072070,0.62392404,62403.0,62402.0,0.000821]
[1728440072298,0.61092404,62403.0,62402.0,0.000821]
[1728440073445,0.62392404,62403.0,62402.0,0.000821]
[1728440073675,0.63592404,62403.0,62402.0,0.001821]
[1728440073929,0.62292404,62403.0,62402.0,0.001821]
[1728440074180,0.62492404,62403.0,62402.0,0.000821]
[1728440074411,0.62361422,62403.0,62402.0,0.001821]
[1728440074637,0.62392404,62403.0,62402.0,0.001821]
[1728440074838,0.62392404,62403.0,62402.0,0.000821]
[1728440075038,0.64904518,62403.0,62402.0,0.000821]
[1728440075298,0.63592404,62403.0,62402.0,0.001821]
[1728440075815,0.67911343,62403.0,62402.0,0.001821]
[1728440077296,0.8228998,62403.0,62402.0,0.001821]
[1728440077540,0.67911343,62403.0,62402.0,0.001821]
[1728440077986,1.37911343,62403.0,62402.0,0.001821]
[1728440078724,1.52286075,62403.0,62402.0,0.001821]
[1728440080381,1.52283836,62403.0,62402.0,0.001821]
[1728440080635,1.37911343,62403.0,62402.0,0.001821]
[1728440080880,1.33592404,62403.0,62402.0,0.001821]
[1728440081839,1.36104685,62403.0,62402.0,0.001821]
[1728440086612,1.38404685,62403.0,62402.0,0.001821]
[1728440086825,1.35892404,62403.0,62402.0,0.001821]
[1728440088325,0.007,62402.0,62401.0,0.000821]
[1728440088636,0.267264,62397.0,62396.0,0.000821]
[1728440088870,0.340587,62388.0,62387.0,0.000821]
[1728440089119,0.60464116,62388.0,62387.0,0.000821]
[1728440089352,0.60495098,62388.0,62387.0,0.000821]
[1728440089586,0.66461584,62388.0,62387.0,0.000821]
[1728440089821,0.76036442,62388.0,62387.0,0.000821]
[1728440090019,0.66461584,62388.0,62387.0,0.000821]
[1728440090509,0.68561584,62388.0,62387.0,0.001821]
[1728440091726,0.78136442,62388.0,62387.0,0.001821]
[1728440091973,0.8218328,62388.0,62387.0,0.001821]
[1728440092218,1.5264927,62388.0,62387.0,0.001821]
[1728440093177,1.55162071,62388.0,62387.0,0.001821]
[1728440093617,1.64725097,62388.0,62387.0,0.001821]
[1728440094377,1.55162071,62388.0,62387.0,0.001821]
[1728440094605,1.6472386,62388.0,62387.0,0.001821]
[1728440095298,1.64723842,62388.0,62387.0,0.001821]
[1728440095302,1.55162071,62388.0,62387.0,0.001821]
[1728440095767,1.55162071,62388.0,62387.0,0.000821]
[1728440096000,1.64722103,62388.0,62387.0,0.000821]
[1728440096714,1.44246311,62388.0,62387.0,0.000821]
[1728440097182,1.37076944,62388.0,62387.0,0.000821]
[1728440097427,1.34776944,62388.0,62387.0,0.000821]
[1728440097671,1.51612535,62388.0,62387.0,0.000821]
[1728440098188,1.51643517,62388.0,62387.0,0.000821]
[1728440098418,1.67184861,62388.0,62387.0,0.000821]
[1728440100139,1.62405223,62388.0,62387.0,0.000821]
[1728440100387,1.67184626,62388.0,62387.0,0.000821]
[1728440100632,1.7351772,62388.0,62387.0,0.000821]
[1728440100870,1.7351772,62388.0,62387.0,0.001642]
[1728440102807,1.68738317,62388.0,62387.0,0.001642]
[1728440103034,1.57977902,62388.0,62387.0,0.001642]
[1728440103492,1.53196973,62388.0,62387.0,0.001642]
[1728440103752,0.83196973,62388.0,62387.0,0.001642]
[1728440104992,0.90370651,62388.0,62387.0,0.001642]
[1728440105706,0.90339669,62388.0,62387.0,0.001642]
[1728440105927,1.05881013,62388.0,62387.0,0.001642]
[1728440106618,0.98707335,62388.0,62387.0,0.001642]
[1728440107554,1.0827224,62388.0,62387.0,0.001642]
[1728440108463,0.98707335,62388.0,62387.0,0.001642]
[1728440108681,0.267289,62387.0,62386.0,0.00021321]
[1728440108901,0.5299139,62387.0,62386.0,0.00021321]
[1728440109126,0.60523786,62387.0,62386.0,0.00021321]
[1728440109575,0.50949911,62387.0,62386.0,0.00021321]
[1728440109798,0.43217515,62387.0,62386.0,0.00021321]
[1728440110024,0.44417515,62387.0,62386.0,0.00021321]
[1728440110538,0.57273646,62387.0,62386.0,0.00021321]
[1728440111001,0.34419047,62383.0,62382.0,0.00019521]
[1728440111198,0.49960391,62383.0,62382.0,0.00019521]
[1728440111432,0.51103891,62383.0,62382.0,0.00019521]
[1728440111594,0.58287621,62383.0,62382.0,0.00019521]
[1728440111835,0.32714844,62383.0,62382.0,0.00019521]
[1728440112037,0.32714844,62383.0,62382.0,0.09299521]
[1728440112038,0.171735,62383.0,62382.0,0.09299521]
[1728440112182,0.171735,62383.0,62382.0,0.00019521]
[1728440112843,0.176735,62383.0,62382.0,0.00019521]
[1728440113533,0.2246374,62383.0,62382.0,0.00019521]
[1728440113745,0.2306374,62383.0,62382.0,0.00019521]
[1728440113960,0.39930522,62383.0,62382.0,0.00019521]
[1728440114458,0.44720762,62383.0,62382.0,0.00019521]
[1728440114670,0.36662547,62383.0,62382.0,0.00019521]
[1728440114883,0.022435,62383.0,62382.0,0.00019521]
[1728440115105,0.33814844,62383.0,62382.0,0.00019521]
[1728440116866,0.38611902,62383.0,62382.0,0.00019521]
[1728440117739,0.38111902,62383.0,62382.0,0.00019521]
[1728440118243,0.019435,62383.0,62382.0,0.07769521]
[1728440118644,0.019435,62383.0,62382.0,0.16869521]
[1728440119063,0.011435,62383.0,62382.0,0.16869521]
[1728440119268,0.180735,62383.0,62382.0,0.16869521]
[1728440119478,0.176735,62383.0,62382.0,0.16869521]
[1728440119909,0.182735,62383.0,62382.0,0.16869521]
[1728440120127,0.23072237,62383.0,62382.0,0.00019521]
[1728440121943,0.182735,62383.0,62382.0,0.00019521]
[1728440123756,0.182735,62383.0,62382.0,0.00019521]
[1728440124220,0.182735,62383.0,62382.0,0.00101621]
[1728440125445,0.23072237,62383.0,62382.0,0.00101621]
[1728440125691,0.182735,62383.0,62382.0,0.00101621]
[1728440125906,0.23072237,62383.0,62382.0,0.00101621]
[1728440126128,0.182735,62383.0,62382.0,0.00101621]
[1728440126801,0.23072237,62383.0,62382.0,0.00101621]
[1728440127028,0.182735,62383.0,62382.0,0.00101621]
[1728440129266,0.022435,62383.0,62382.0,0.00101621]
[1728440129496,0.182735,62383.0,62382.0,0.00101621]
[1728440129728,0.23072237,62383.0,62382.0,0.00101621]
[1728440130717,0.35893371,62383.0,62382.0,0.00101621]
[1728440132666,0.182735,62383.0,62382.0,0.00101621]
[1728440132891,0.27870975,62383.0,62382.0,0.00101621]
[1728440133344,0.182735,62383.0,62382.0,0.00101621]
[1728440135550,0.184377,62383.0,62382.0,0.00101621]
[1728440136025,0.28047784,62383.0,62382.0,0.00101621]
[1728440136267,0.184377,62383.0,62382.0,0.00101621]
[1728440137505,0.40621151,62383.0,62382.0,0.00101621]
[1728440138504,0.28047784,62383.0,62382.0,0.00101621]
[1728440138720,0.28047792,62383.0,62382.0,0.00101621]
[1728440140188,0.184377,62383.0,62382.0,0.00101621]
[1728440140414,0.28047642,62383.0,62382.0,0.00101621]
[1728440141832,0.184377,62383.0,62382.0,0.00101621]
[1728440142043,0.28047398,62383.0,62382.0,0.00101621]
[1728440142242,0.28047706,62383.0,62382.0,0.00101621]
[1728440142685,0.184377,62383.0,62382.0,0.00101621]
[1728440142900,0.28048239,62383.0,62382.0,0.00101621]
[1728440143577,0.28048486,62383.0,62382.0,0.00101621]
[1728440144026,0.40621955,62383.0,62382.0,0.00101621]
[1728440144260,0.31011137,62383.0,62382.0,0.00101621]
[1728440144921,0.40622108,62383.0,62382.0,0.00101621]
[1728440145399,0.31011137,62383.0,62382.0,0.00101621]
[1728440145862,0.40620068,62383.0,62382.0,0.00101621]
[1728440146080,0.31011137,62383.0,62382.0,0.00101621]
[1728440146312,0.4301952,62383.0,62382.0,0.00101621]
[1728440148327,0.58560864,62383.0,62382.0,0.00101621]
[1728440148551,0.64422481,62383.0,62382.0,0.00101621]
[1728440148773,0.64453451,62383.0,62382.0,0.00101621]
[1728440149005,0.64253451,62383.0,62382.0,0.00101621]
[1728440149876,0.64453451,62383.0,62382.0,0.00101621]
[1728440150091,0.63953451,62383.0,62382.0,0.00101621]
[1728440150307,0.63353451,62383.0,62382.0,0.00101621]
[1728440150540,0.63953451,62383.0,62382.0,0.00101621]
[1728440150988,0.63353451,62383.0,62382.0,0.00101621]
[1728440151209,0.64153451,62383.0,62382.0,0.00101621]
[1728440151657,0.65053451,62383.0,62382.0,0.00101621]
[1728440152090,0.63353451,62383.0,62382.0,0.00101621]
[1728440152308,0.64353451,62383.0,62382.0,0.00101621]
[1728440152534,0.63353451,62383.0,62382.0,0.00101621]
[1728440153220,0.64053451,62383.0,62382.0,0.00101621]
[1728440153444,0.7966351,62383.0,62382.0,0.00101621]
[1728440153902,0.7876351,62383.0,62382.0,0.00101621]
[1728440154121,0.7966351,62383.0,62382.0,0.00101621]
[1728440154355,0.79671551,62383.0,62382.0,0.00101621]
[1728440154556,0.78740581,62383.0,62382.0,0.00101621]
[1728440154777,0.77740581,62383.0,62382.0,0.00101621]
[1728440155013,0.78740581,62383.0,62382.0,0.00101621]
[1728440155225,0.79209495,62383.0,62382.0,0.00101621]
[1728440155433,0.79840581,62383.0,62382.0,0.00101621]
[1728440155638,0.78740581,62383.0,62382.0,0.00101621]
[1728440156077,0.79940581,62383.0,62382.0,0.00101621]
[1728440156288,0.79971559,62383.0,62382.0,0.00101621]
[1728440156489,0.65553459,62383.0,62382.0,0.00101621]
[1728440156738,0.64553459,62383.0,62382.0,0.00101621]
[1728440156942,0.65653459,62383.0,62382.0,0.00101621]
[1728440157604,0.64553459,62383.0,62382.0,0.00101621]
[1728440157822,0.65753459,62383.0,62382.0,0.00101621]
[1728440158039,0.64553459,62383.0,62382.0,0.00101621]
[1728440158272,0.64653459,62383.0,62382.0,0.00101621]
[1728440158501,0.63353459,62383.0,62382.0,0.00101621]
[1728440158724,0.64753459,62383.0,62382.0,0.00101621]
[1728440158956,0.66153459,62383.0,62382.0,0.00101621]
[1728440159863,0.64522481,62383.0,62382.0,0.00101621]
[1728440160093,0.78932915,62383.0,62382.0,0.00101621]
[1728440160814,0.64959478,62383.0,62382.0,0.00101621]
[1728440161052,0.44943821,62383.0,62382.0,0.00101621]
[1728440161291,0.47743821,62383.0,62382.0,0.00101621]
[1728440161521,0.46343821,62383.0,62382.0,0.00101621]
[1728440162250,0.65693821,62383.0,62382.0,0.00101621]
[1728440162467,0.95645599,62383.0,62382.0,0.00101621]
[1728440162897,0.50089478,62383.0,62382.0,0.00101621]
[1728440163116,0.47743821,62383.0,62382.0,0.00101621]
[1728440164195,0.44943821,62383.0,62382.0,0.00101621]
[1728440164437,0.47743821,62383.0,62382.0,0.00101621]
[1728440164654,0.13711303,62383.0,62382.0,0.00101621]
[1728440164875,0.08510587,62383.0,62382.0,0.00101621]
[1728440165089,0.023077,62383.0,62382.0,0.00101621]
[1728440165315,0.26440596,62383.0,62382.0,0.00101621]
[1728440165784,0.25540596,62383.0,62382.0,0.00101621]
[1728440165989,0.37405373,62383.0,62382.0,0.00101621]
[1728440166218,0.30202477,62383.0,62382.0,0.00101621]
[1728440166629,0.57353067,62383.0,62382.0,0.00101621]
[1728440166841,0.30202477,62383.0,62382.0,0.00101621]
[1728440167247,0.021077,62383.0,62382.0,0.00101621]
[1728440167671,0.030077,62383.0,62382.0,0.00101621]
[1728440168100,0.190377,62383.0,62382.0,0.00101621]
[1728440168505,0.26240748,62383.0,62382.0,0.00101621]
[1728440168711,0.10210748,62383.0,62382.0,0.00101621]
[1728440169511,0.26240748,62383.0,62382.0,0.00101621]
[1728440170078,0.10210748,62383.0,62382.0,0.00101621]
[1728440170295,0.22275525,62383.0,62382.0,0.00101621]
[1728440170521,0.31102477,62383.0,62382.0,0.00101621]
[1728440171145,0.43624015,62383.0,62382.0,0.00101621]
[1728440171370,0.3401995,62383.0,62382.0,0.00101621]
[1728440171591,0.79496375,62383.0,62382.0,0.00101621]
[1728440171805,0.67691294,62383.0,62382.0,0.00101621]
[1728440172042,0.51692275,62383.0,62367.0,0.23691085]
[1728440172259,0.12064777,62371.0,62367.0,0.23691085]
[1728440172476,0.160338,62368.0,62367.0,0.23691085]
[1728440172685,0.160338,62368.0,62364.0,0.078122]
[1728440172686,0.16034,62368.0,62364.0,0.078122]
[1728440172905,0.17185552,62368.0,62364.0,0.078122]
[1728440173344,0.160341,62367.0,62364.0,0.078122]
[1728440173781,0.01150609,62366.0,62364.0,0.078122]
[1728440174681,0.01150609,62366.0,62364.0,0.000822]
[1728440174930,0.01150609,62366.0,62364.0,0.001822]
[1728440175164,0.01150609,62366.0,62364.0,0.000822]
[1728440175165,0.17184909,62366.0,62364.0,0.000822]
[1728440175393,0.17284909,62366.0,62364.0,0.001822]
[1728440175629,0.24009516,62365.0,62364.0,0.001822]
[1728440176098,0.25161068,62365.0,62364.0,0.001822]
[1728440176770,0.25161068,62365.0,62364.0,0.000822]
[1728440178170,0.59094908,62365.0,62364.0,0.000822]
[1728440178421,0.74257639,62365.0,62364.0,0.000822]
[1728440178652,0.88425773,62365.0,62364.0,0.000822]
[1728440178866,0.7622589,62365.0,62364.0,0.000822]
[1728440179086,0.7642589,62365.0,62364.0,0.000822]
[1728440179783,0.7632589,62365.0,62364.0,0.000822]
[1728440180012,0.7652589,62365.0,62364.0,0.000822]
[1728440180227,0.7642589,62365.0,62364.0,0.000822]
[1728440180447,0.76294908,62365.0,62364.0,0.000822]
[1728440180887,0.77294908,62365.0,62364.0,0.000822]
[1728440181105,0.77194908,62365.0,62364.0,0.000822]
[1728440181342,0.89179732,62365.0,62364.0,0.000822]
[1728440181561,0.89079732,62365.0,62364.0,0.000822]
[1728440182032,0.89279732,62365.0,62364.0,0.000822]
[1728440182315,0.7812589,62365.0,62364.0,0.000822]
[1728440182762,0.7732589,62365.0,62364.0,0.000822]
[1728440183196,0.87908332,62365.0,62364.0,0.000822]
[1728440183870,0.89008332,62365.0,62364.0,0.000822]
[1728440184366,0.7742589,62365.0,62364.0,0.000822]
[1728440184877,0.7872589,62365.0,62364.0,0.000822]
[1728440185110,0.7752589,62365.0,62364.0,0.000822]
[1728440185349,0.83608475,62365.0,62364.0,0.000822]
[1728440185589,0.84708475,62365.0,62364.0,0.000822]
[1728440186486,0.85908475,62365.0,62364.0,0.000822]
[1728440187766,0.85708475,62365.0,62364.0,0.000822]
[1728440187982,0.85677493,62365.0,62364.0,0.000822]
[1728440188223,0.78694908,62365.0,62364.0,0.000822]
[1728440188654,0.78494908,62365.0,62364.0,0.000822]
[1728440190192,0.83280476,62365.0,62364.0,0.000822]
[1728440192042,0.7530556,62365.0,62364.0,0.000822]
[1728440192506,0.75305345,62365.0,62364.0,0.000822]
[1728440195900,0.75505345,62365.0,62364.0,0.000822]
[1728440196112,0.75305345,62365.0,62364.0,0.000822]
[1728440196515,0.68989909,62365.0,62364.0,0.000822]
[1728440196739,0.84731253,62365.0,62364.0,0.000822]
[1728440196949,0.84762235,62365.0,62364.0,0.000822]
[1728440197292,0.84563297,62365.0,62364.0,0.000822]
[1728440197516,0.84532315,62365.0,62364.0,0.000822]
[1728440198383,0.84732315,62365.0,62364.0,0.000822]
[1728440199066,0.84532315,62365.0,62364.0,0.000822]
[1728440199876,0.84732315,62365.0,62364.0,0.000822]
[1728440200078,0.84763297,62365.0,62364.0,0.000822]
[1728440202305,0.90476882,62365.0,62364.0,0.000822]
[1728440205299,1.62776882,62365.0,62364.0,0.000822]
[1728440205519,1.74742921,62365.0,62364.0,0.000822]
[1728440206665,1.62776882,62365.0,62364.0,0.000822]
[1728440212185,0.92776882,62365.0,62364.0,0.000822]
[1728440214954,0.267366,62357.0,62356.0,0.000822]
[1728440215208,0.54385986,62357.0,62356.0,0.000822]
[1728440215448,0.67479443,62357.0,62356.0,0.000822]
[1728440216181,0.68521215,62357.0,62356.0,0.000822]
[1728440216442,1.37521215,62357.0,62356.0,0.000822]
[1728440216699,1.40954517,62357.0,62356.0,0.000822]
[1728440216958,1.54331577,62357.0,62356.0,0.000822]
[1728440217195,1.54793406,62357.0,62356.0,0.000822]
[1728440217439,1.55693406,62357.0,62356.0,0.000822]
[1728440217670,1.54793406,62357.0,62356.0,0.000822]
[1728440218145,1.43983406,62357.0,62356.0,0.000822]
[1728440218848,0.85954637,62357.0,62356.0,0.000822]
[1728440219067,0.73983406,62357.0,62356.0,0.000822]
[1728440219524,0.69954368,62357.0,62356.0,0.000822]
[1728440219816,0.54983184,62357.0,62356.0,0.000822]
[1728440220075,0.57480233,62357.0,62356.0,0.000822]
[1728440220327,0.67063897,62357.0,62356.0,0.000822]
[1728440221802,0.54986837,62357.0,62356.0,0.000822]
[1728440222047,0.71547895,62357.0,62356.0,0.000822]
[1728440222304,0.61964231,62357.0,62356.0,0.000822]
[1728440222562,0.73938366,62357.0,62356.0,0.000822]
[1728440223482,0.61964231,62357.0,62356.0,0.000822]
[1728440225826,0.62464231,62357.0,62356.0,0.000822]
[1728440227717,0.61964231,62357.0,62356.0,0.000822]
[1728440229903,0.44996661,62357.0,62356.0,0.000822]
[1728440230381,0.13418717,62357.0,62356.0,0.000822]
[1728440230611,0.03825229,62357.0,62356.0,0.000822]
[1728440230857,0.18461829,62357.0,62356.0,0.000822]
[1728440231097,0.31238889,62357.0,62356.0,0.000822]
[1728440231318,0.29938889,62357.0,62356.0,0.000822]
[1728440231547,0.37133957,62357.0,62356.0,0.000822]
[1728440231767,0.09620297,62357.0,62356.0,0.000822]
[1728440232004,0.07222042,62357.0,62356.0,0.000822]
[1728440232255,0.23258642,62357.0,62356.0,0.000822]
[1728440232502,0.07222042,62357.0,62356.0,0.000822]
[1728440233250,0.02425229,62357.0,62356.0,0.161191]
[1728440233543,0.02425229,62357.0,62356.0,0.338191]
[1728440233780,0.013,62357.0,62356.0,0.338191]
[1728440234251,0.02225675,62357.0,62356.0,0.338191]
[1728440234495,0.00925675,62357.0,62356.0,0.338191]
[1728440234720,0.24289464,62361.0,62357.0,0.160366]
[1728440234970,0.00928506,62360.0,62359.0,0.160361]
[1728440235208,0.00928506,62360.0,62359.0,0.341761]
[1728440235459,0.001644,62361.0,62360.0,0.160359]
[1728440235699,0.01090949,62361.0,62360.0,0.160359]
[1728440236660,0.001644,62361.0,62360.0,0.160359]
[1728440236861,0.01092894,62361.0,62360.0,0.160359]
[1728440237069,0.001644,62361.0,62360.0,0.160359]
[1728440237280,0.01092894,62361.0,62360.0,0.160359]
[1728440237405,0.001644,62361.0,62360.0,0.160359]
[1728440237847,0.001644,62361.0,62360.0,0.4625296]
[1728440237848,0.01192894,62361.0,62360.0,0.4625296]
[1728440238068,0.002644,62361.0,62360.0,0.4625296]
[1728440239125,0.001644,62361.0,62360.0,0.4625296]
[1728440239338,0.002644,62361.0,62360.0,0.4645296]
[1728440240389,0.002644,62361.0,62360.0,0.343759]
[1728440241722,0.003644,62361.0,62360.0,0.345581]
[1728440245032,0.01294093,62361.0,62360.0,0.345581]
[1728440245740,0.01094093,62361.0,62360.0,0.342581]
[1728440246202,0.01094093,62361.0,62360.0,0.161181]
[1728440246434,0.2827706,62361.0,62360.0,0.000822]
[1728440246663,0.35242118,62361.0,62360.0,0.001822]
[1728440246874,0.19206518,62361.0,62360.0,0.003822]
[1728440247758,0.35242118,62361.0,62360.0,0.001822]
[1728440248200,0.29207342,62361.0,62360.0,0.000822]
[1728440249970,0.44748686,62361.0,62360.0,0.000822]
[1728440250415,0.61568686,62361.0,62360.0,0.000822]